Cogmind - Beta 11.1 @@@ ROGUE MODE // 2022.12.03 @ 01:46:49 Player: Richard Blunt Result: Destroyed by G-73 Enforcer with Phase Gun Performance ------------- Evolutions (9) 4500 Regions Visited (16) 3200 Robots Destroyed (176) 880 Value Destroyed (4329) 4329 Prototype IDs (22) 440 Alien Tech Used (2) 400 Bonus (1274) 1274 TOTAL SCORE: 15023 Bonus ------- High Alert Combat Kills 434 Follower Combat Kills 340 Entered DSFs 500 Cogmind --------- Core Integrity 0/1600 Matter 247/300 Energy 100/100 System Corruption 0% Temperature Cool (0) Movement Core (50) Location -1/Access Parts ------- > --- POWER (3) -------- (None) > --- PROPULSION (9) --- (None) > --- UTILITY (11) ----- Enhanced Optical Array Advanced Signal Interpreter > --- WEAPON (2) ------- (None) > --- INVENTORY (5) ---- Micro Antimatter Reactor Makeshift ECM Suite Peak State ------------ > --- POWER ------------ Micro Antimatter Reactor Micro Antimatter Reactor > --- PROPULSION ------- Impulse Thruster Impulse Thruster Impulse Thruster Field Propulsion Array Improved Diametric Drive Impulse Thruster Array > --- UTILITY ---------- Triangulator Improved Sensor Array Long-range Sensor Array Advanced Signal Interpreter 0b10 Decoder Chip [Scout] Advanced Targeting Computer Phase Shifter Improved Cloaking Device Improved Propulsion Shielding Hacking Suite System Shield > --- WEAPON ----------- Enhanced Quantum Rifle Enhanced Nova Cannon > --- INVENTORY -------- Micro Antimatter Reactor Impulse Thruster Makeshift ECM Suite Improved System Restoration Module Improved Plasma Cutter [Rating: 145] Favorites ----------- Power Light Deuterium Engine Engine Light Deuterium Engine Power Core Light Neutrino Core Reactor Micro Antimatter Reactor Propulsion Improved VTOL Module Treads Light Treads Wheel Armored Wheel Hover Unit Improved Linear Gravjet Flight Unit Improved VTOL Module Utility System Shield Device Improved Sensor Array Storage Huge Storage Unit Processor Visual Processing Unit Hackware System Shield Protection Medium Reactive Plating Weapon Improved Assault Rifle Energy Gun Enhanced Quantum Rifle Energy Cannon Advanced Plasma Cannon Ballistic Gun Improved Assault Rifle Ballistic Cannon Light Cannon Launcher Heavy Missile Launcher Special Weapon Mining Laser Impact Weapon Power Maul Slashing Weapon Katana Build | -11 -10 -9 -8 -7 -6 -5 -5 -5 -4 -4 -4 -3 -3 -2 -2 -1 ------- Run | Scr Mat Mat Mat Fac Fac Fac Ext Cet Fac Upp Upp Res DSF Res Qua Acc Slots Evolved 18 | . . 2 2 2 2 2 . . 2 . . 2 . 2 . 2 Power 2 | . . . . . . . . . . . . . . 1 . 1 Propulsion 7 | . . 1 1 1 1 1 . . . . . . . 1 . 1 Utility 9 | . . 1 1 1 1 1 . . 2 . . 2 . . . . Weapon . | . . . . . . . . . . . . . . . . . Parts Attached 251 | 6 18 27 39 19 7 17 25 3 16 4 7 3 4 31 9 16 Power 31 | 1 2 6 4 2 . 3 3 . 1 . 1 . . 2 3 3 Engine 17 | 1 2 6 4 2 . 1 1 . . . . . . . . . Core 4 | . . . . . . 1 2 . . . 1 . . . . . Reactor 10 | . . . . . . 1 . . 1 . . . . 2 3 3 Propulsion 65 | 2 8 6 12 6 2 1 3 . 3 . 1 1 . 15 . 5 Treads 10 | . . . 8 . . . . . . . . . . 2 . . Leg . | . . . . . . . . . . . . . . . . . Wheel 20 | 2 6 6 4 . 1 1 . . . . . . . . . . Hover 5 | . 2 . . . . . . . . . . . . 3 . . Flight 30 | . . . . 6 1 . 3 . 3 . 1 1 . 10 . 5 Utility 68 | 1 3 3 9 7 5 8 5 2 3 1 2 2 3 8 4 2 Device 35 | . 1 . 3 4 3 7 1 1 2 . 1 2 2 6 2 . Storage 2 | 1 1 . . . . . . . . . . . . . . . Processor 11 | . 1 1 1 1 . . . . . 1 1 . 1 1 1 2 Hackware 6 | . . . . 2 1 1 1 . . . . . . . 1 . Protection 14 | . . 2 5 . 1 . 3 1 1 . . . . 1 . . Artifact . | . . . . . . . . . . . . . . . . . Weapon 87 | 2 5 12 14 4 . 5 14 1 9 3 3 . 1 6 2 6 Energy Gun 7 | . 1 . . . . . . . . . . . . 2 1 3 Energy Cannon 15 | . . . . . . 3 1 . 2 . 2 . 1 3 . 3 Ballistic Gun 16 | 2 . 5 8 . . . . . . 1 . . . . . . Ballistic Cannon 5 | . 2 3 . . . . . . . . . . . . . . Launcher 15 | . 1 2 2 2 . . 5 1 2 . . . . . . . Special Weapon 9 | . 1 2 4 . . . . . . . . . . 1 1 . Impact Weapon 11 | . . . . 1 . 1 4 . 3 1 1 . . . . . Slashing Weapon 9 | . . . . 1 . 1 4 . 2 1 . . . . . . Piercing Weapon . | . . . . . . . . . . . . . . . . . Special Melee Weapon . | . . . . . . . . . . . . . . . . . Unidentified Prototypes 10 | . . 2 1 1 . 2 . . 1 . . . . . 3 . Parts Lost 73 | . 4 5 11 . . . 1 5 4 . 3 . 4 8 1 27 Power 10 | . . 2 2 . . . . . . . 1 . . 1 . 4 Propulsion 24 | . 2 1 3 . . . . 3 . . 1 . 2 1 . 11 Utility 25 | . 1 . 4 . . . 1 1 3 . . . 1 5 . 9 Weapon 14 | . 1 2 2 . . . . 1 1 . 1 . 1 1 1 3 Highest Loss Streak 22 | . 2 1 5 . . . 1 5 3 . 2 . 4 6 1 22 To Critical Strikes 2 | . . . . . . . . 1 . . 1 . . . . . Average Slot Usage (%) 93 | . 96 96 98 98 99 99 97 91 78 82 87 82 87 84 83 59 Engine 6 | . 14 9 8 6 6 2 1 . . . . . . . . . Reactor 1 | . . . . . . 2 1 . . 5 4 . . 7 8 8 Treads 9 | . . . 32 1 . . . . . . . . . 1 . . Wheel 9 | . 26 32 3 . . 5 5 . . . . . . . . . Flight 13 | . . . . 36 39 35 35 35 21 26 26 22 21 21 26 20 Device 8 | . 11 . 8 7 11 10 5 3 10 15 15 17 22 19 22 9 Storage 5 | . 14 11 9 . . . . . . . . . . . . . Processor 9 | . 1 11 9 14 7 5 5 5 5 8 14 14 14 16 13 12 Hackware 7 | . . . . 13 20 23 23 23 19 15 15 14 13 7 6 6 Protection 4 | . . 9 9 . . . 4 5 5 . . . . . . . Ballistic Gun 7 | . 14 10 15 . . . . . . . . . . . . . Ballistic Cannon 2 | . 9 9 1 . . . . . . . . . . . . . Impact Weapon 1 | . . . . 6 6 3 2 2 4 5 2 . . . . . Slashing Weapon 1 | . . . . 4 6 5 2 . 4 5 5 4 4 . . . Naked Turns . | . . . . . . . . . . . . . . . . . Heaviest Build 116 | 13 89 97 116 114 12 25 26 23 34 21 35 32 33 43 44 49 Greatest Support 110 | 32 32 40 80 80 30 25 36 36 45 45 47 47 47 110 59 66 Greatest Overweight (x) 7 | 1 3 3 7 2 . . . . . . . . 1 1 . 1 Average Overweight (x) . | . . 2 1 . . . . . . . . . . . . . Largest Inventory Capacity 25 | 8 25 25 25 25 5 5 5 5 5 5 5 5 5 5 5 5 Average Capacity 14 | 7 11 25 25 7 5 5 5 5 5 5 5 5 5 5 5 5 Most Carried 25 | 6 12 25 25 25 5 5 5 5 5 5 5 4 5 5 5 4 Average Carried 13 | 3 8 21 23 7 4 4 4 4 3 4 4 3 4 4 3 2 Final Capacity 25 | 8 25 25 25 5 5 5 5 5 5 5 5 5 5 5 5 5 Final Carried 25 | 6 11 25 25 5 5 5 5 4 5 5 3 4 5 5 5 2 Class Distribution -------------------- 48% | Mutant 31% | Hacker-Sprinter 7% | Scavenger-Mutant 5% | Hacker-Scout Dominant Class ---------------- Mutant | -10/Materials Mutant | -9/Materials Mutant | -8/Materials Hacker-Scout | -7/Factory Hacker-Sprinter | -6/Factory Hacker-Sprinter | -5/Factory Hacker-Sprinter | -5/Extension Hacker-Sprinter | -5/Cetus Hacker-Sprinter | -4/Factory Hacker-Sprinter | -4/Upper Caves Hacker-Sprinter | -4/Upper Caves Hacker-Sprinter | -3/Research Hacker-Sprinter | -3/DSF Hacker-Sprinter | -2/Research Hacker-Sprinter | -2/Quarantine Generator-Sprinter | -1/Access Resources | -11 -10 -9 -8 -7 -6 -5 -5 -5 -4 -4 -4 -3 -3 -2 -2 -1 ----------- Run | Scr Mat Mat Mat Fac Fac Fac Ext Cet Fac Upp Upp Res DSF Res Qua Acc Matter Collected 5080 | 308 702 929 1195 136 91 98 681 . 245 68 64 75 9 190 136 153 Remotely . | . . . . . . . . . . . . . . . . . Salvage Created 6689 | 151 671 1334 1817 22 121 98 1195 . 394 . . 247 . 190 296 153 Parts 333 | 10 43 102 87 . 5 7 35 . 3 . . 6 . 7 20 8 Haulers Intercepted 17 | . 2 1 4 . . . 7 . 1 . . 1 . . 1 . Recyclers Shooed 9 | . 1 1 2 . . 1 . . . . . . . 2 . 2 Parts Field Recycled 7 | . . . . . . 7 . . . . . . . . . . Retrieved Matter 126 | . . . . . . 126 . . . . . . . . . . Parts Self-Destructed . | . . . . . . . . . . . . . . . . . Prevented . | . . . . . . . . . . . . . . . . . Kills | -11 -10 -9 -8 -7 -6 -5 -5 -5 -4 -4 -4 -3 -3 -2 -2 -1 ------- Run | Scr Mat Mat Mat Fac Fac Fac Ext Cet Fac Upp Upp Res DSF Res Qua Acc Combat Hostiles Destroyed 89 | . 15 29 26 . . . 12 . 2 . . . . . 5 . Guns 41 | . 8 10 18 . . . . . . . . . . . 5 . Cannons 26 | . 4 16 6 . . . . . . . . . . . . . AOE 22 | . 3 3 2 . . . 12 . 2 . . . . . . . Classes Destroyed 13 | 2 6 3 1 . . . 1 . . . . . . . . . Worker 18 | . 2 1 5 1 2 1 4 . . . . . . 1 . 1 Builder 9 | . 1 3 3 . . . 2 . . . . . . . . . Tunneler 13 | 4 . 1 3 . 1 1 2 . 1 . . . . . . . Hauler 17 | . 2 1 4 . . . 7 . 1 . . 1 . . 1 . Recycler 15 | 1 1 3 4 . . . 1 . 2 . . 1 . 1 . 1 Watcher 15 | . 3 4 2 . 2 2 2 . . . . . . . . . Swarmer 20 | . 3 5 . . . . 5 . 2 . . . . . 5 . Grunt 47 | . 12 15 18 . . . 2 . . . . . . . . . Brawler 1 | . . 1 . . . . . . . . . . . . . . Duelist 1 | . . 1 . . . . . . . . . . . . . . Sentry 12 | . . 7 5 . . . . . . . . . . . . . Hunter 6 | . . . 3 . . . 3 . . . . . . . . . Behemoth 2 | . . . . . . . 2 . . . . . . . . . Best Kill Streak 9 | 5 4 9 6 1 2 1 9 . 3 . . 1 . 2 5 2 Combat Bots Only 7 | . 4 6 3 . . . 7 . 2 . . . . . 5 . Max Kills in Single Turn 3 | 1 3 2 2 1 1 1 3 . 1 . . 1 . 1 1 1 Gunslinging . | . . . . . . . . . . . . . . . . . Exploded 3 | . 3 1 2 . . . 3 . 1 . . . . . . . Melee . | . . . . . . . . . . . . . . . . . Uniques/NPCs Destroyed . | . . . . . . . . . . . . . . . . . Combat | -11 -10 -9 -8 -7 -6 -5 -5 -5 -4 -4 -4 -3 -3 -2 -2 -1 -------- Run | Scr Mat Mat Mat Fac Fac Fac Ext Cet Fac Upp Upp Res DSF Res Qua Acc Damage Taken 10577 | . 696 1279 1716 . . . 591 531 796 . 153 . 431 1066 137 3181 Core 2833 | . 84 165 220 . . . 37 128 140 . . . 165 249 23 1622 Absorbed by Shields 376 | . . . 252 . . . 116 . . . . . 8 . . . Redirected to Shielding 108 | . . . . . . . . . . . . . . 108 . . Regen/Repaired (Parts) 363 | . . 167 28 . . . . . 49 . . 119 . . . . Core Remaining (%) 81 | 100 66 58 60 100 100 . . 83 . . 87 . 87 . 73 . Volleys Fired 511 | 12 90 99 142 . . 10 34 5 13 . 13 . . 51 28 14 Largest 2 | 2 2 2 2 . . 1 1 2 1 . 1 . . 2 2 1 Hottest 185 | 40 100 100 100 . . 98 98 78 98 . 98 . . 185 120 120 Shots Fired 814 | 24 163 182 263 . . 10 34 10 13 . 13 . . 54 34 14 Gun 452 | 24 81 87 203 . . . . . . . . . . 36 17 4 Cannon 263 | . 73 83 43 . . 10 5 . 10 . 13 . . 10 6 10 Launcher 54 | . 1 4 7 . . . 29 10 3 . . . . . . . Special 45 | . 8 8 10 . . . . . . . . . . 8 11 . Kinetic 594 | 24 154 170 246 . . . . . . . . . . . . . Thermal 166 | . 8 8 10 . . 10 5 . 10 . 13 . . 54 34 14 Explosive 54 | . 1 4 7 . . . 29 10 3 . . . . . . . Electromagnetic . | . . . . . . . . . . . . . . . . . Robot Hit Streak 22 | 6 8 8 22 . . . 3 . . . . . . 6 8 3 Robot Miss Streak 4 | 2 4 3 3 . . . . . . . . . . 1 2 1 Penetration Max . | . . . . . . . . . . . . . . . . . Secondary Targets . | . . . . . . . . . . . . . . . . . Shots Hit Robots 481 | 16 104 111 184 1 5 5 19 . 7 . . 3 . 11 12 3 Core Hits 282 | 7 38 60 85 . 1 1 46 22 4 . . 2 . 4 9 3 Critical Kills 2 | . 1 . 1 . . . . . . . . . . . . . Critical Parts Destroyed 12 | . 1 . 1 . 2 2 4 . 2 . . . . . . . Critical Strikes 19 | . 5 1 2 . 2 2 4 . 2 . . . . 1 . . Destroy 4 | . 2 . 2 . . . . . . . . . . . . . Blast 4 | . 3 1 . . . . . . . . . . . . . . Smash 10 | . . . . . 2 2 4 . 2 . . . . . . . Sever 1 | . . . . . . . . . . . . . . 1 . . Melee Attacks 96 | . . . . 10 18 23 22 . 20 . . 3 . . . . Impact 70 | . . . . 8 13 14 19 . 16 . . . . . . . Slashing 26 | . . . . 2 5 9 3 . 4 . . 3 . . . . Piercing . | . . . . . . . . . . . . . . . . . Sneak Attacks 19 | . . . . 1 3 3 7 . 3 . . 2 . . . . Combat Hostiles . | . . . . . . . . . . . . . . . . . Follow-up Attacks 3 | . . . . . . . 2 . 1 . . . . . . . Damage Inflicted 14647 | 192 1668 2356 3436 139 450 375 3646 641 782 . . 208 . 356 310 88 Guns 4654 | 192 745 923 2347 . . . . . . . . . . 113 246 88 Cannons 2565 | . 810 931 669 . . . . . . . . . . 155 . . Explosions 4258 | . 94 375 331 . . . 2553 641 264 . . . . . . . Melee 2783 | . . . . 139 450 375 1093 . 518 . . 208 . . . . Ramming 235 | . 19 127 89 . . . . . . . . . . . . . Kinetic 6617 | 192 1555 1854 3016 . . . . . . . . . . . . . Thermal 754 | . . . . . . . . . . . . . . 356 310 88 Explosive 4258 | . 94 375 331 . . . 2553 641 264 . . . . . . . Electromagnetic . | . . . . . . . . . . . . . . . . . Impact 2403 | . . . . 139 450 335 1029 . 450 . . . . . . . Slashing 380 | . . . . . . 40 64 . 68 . . 208 . . . . Piercing . | . . . . . . . . . . . . . . . . . Highest Corruption 8 | . 1 1 . 2 . 1 . . 2 2 2 . 4 4 8 . Average Corruption 1 | . 1 1 . 1 . 1 . . 1 2 2 . 4 1 3 . Corruption Purged 10 | . . . . 2 . 1 . . . . . . . . 7 . Corruption Blocked . | . . . . . . . . . . . . . . . . . Effects 19 | . . 8 . 1 . 1 . . . 1 4 . 1 1 2 . Message Errors 6 | . . 3 . 1 . 1 . . . . 1 . . . . . Matter Fused 4 | . . 3 . . . . . . . . . . . . 1 . Heat Flow Errors 1 | . . . . . . . . . . . 1 . . . . . Energy Discharges 4 | . . . . . . . . . . . 1 . 1 1 1 . Data Loss (minor) 4 | . . 2 . . . . . . . 1 1 . . . . . Overload Shots . | . . . . . . . . . . . . . . . . . Overflow Damage 1467 | . 18 35 4 99 289 191 521 . 257 . . . . 53 . . Projectiles 64 | . . 11 . . . . . . . . . . . 53 . . Explosions 130 | . 18 . 4 . . . 90 . 18 . . . . . . . Melee 1273 | . . 24 . 99 289 191 431 . 239 . . . . . . . Knockbacks 32 | . 11 7 8 1 . 2 1 . 2 . . . . . . . Impact 7 | . 1 . . 1 . 2 1 . 2 . . . . . . . Kinetic 24 | . 10 7 7 . . . . . . . . . . . . . Secondary 1 | . . . 1 . . . . . . . . . . . . . Self-Inflicted Damage 213 | . 9 60 56 . . . 25 . 63 . . . . . . . Shots 4 | . . . 2 . . . 1 . 1 . . . . . . . Rammed 19 | . 4 9 5 . . . . . . . . . . . . 1 Targets Rammed 22 | . 4 9 8 . . . . . . . . . . . . 1 Kicked . | . . . . . . . . . . . . . . . . . Crushed 3 | . . . 3 . . . . . . . . . . . . . Highest Temperature 463 | . 42 366 117 2 5 328 214 189 463 . 250 . . 372 8 383 Average Temperature 82 | . 11 33 24 2 5 156 42 133 146 . 109 . . 153 8 154 Received Heat Transfer 1920 | . 396 456 804 . . . 42 . 42 . . . 15 81 . 84 Effects 18 | . . 1 . . . . . . 1 . 1 . . 4 . 11 Shutdowns 6 | . . . . . . . . . 1 . . . . 1 . 4 Energy Bleed 4 | . . . . . . . . . . . 1 . . 2 . 1 Interference 3 | . . . . . . . . . . . . . . . . 3 Matter Decay 3 | . . 1 . . . . . . . . . . . . . 2 Damage (minor) 2 | . . . . . . . . . . . . . . 1 . 1 Siege Activations . | . . . . . . . . . . . . . . . . . Robots Corrupted . | . . . . . . . . . . . . . . . . . Combat Hostiles . | . . . . . . . . . . . . . . . . . Parts Fried 23 | . . 5 . . 3 2 5 . 8 . . . . . . . Impact Corruptions 40 | . . 2 . 3 11 6 11 . 7 . . . . . . . Robots Melted . | . . . . . . . . . . . . . . . . . Combat Hostiles . | . . . . . . . . . . . . . . . . . Parts Melted 3 | . . . . . . . . . . . . . . 3 . . Heat Transferred 962 | . . . . . . . . . . . . . . 407 444 111 Parts Sabotaged . | . . . . . . . . . . . . . . . . . Parts Stolen . | . . . . . . . . . . . . . . . . . Parts Stripped . | . . . . . . . . . . . . . . . . . Power Chain Reactions . | . . . . . . . . . . . . . . . . . Missiles Intercepted . | . . . . . . . . . . . . . . . . . Alert | -11 -10 -9 -8 -7 -6 -5 -5 -5 -4 -4 -4 -3 -3 -2 -2 -1 ------- Run | Scr Mat Mat Mat Fac Fac Fac Ext Cet Fac Upp Upp Res DSF Res Qua Acc Peak Influence 802 | 25 341 802 622 295 106 168 660 401 459 . . 323 270 180 250 546 Initial 369 | . 16 125 307 245 46 51 1 369 200 . . 236 255 129 95 149 Average 307 | 8 167 489 440 228 70 67 282 374 253 . . 292 257 122 167 259 Maximum Alert Level 3 | . 1 3 2 1 . . 2 2 2 . . 1 1 . 1 2 Low Security (%) 32 | 100 58 6 . 22 100 100 25 . 20 . . . . 100 61 44 Level 1 36 | . 41 23 42 77 . . 55 97 67 . . 100 100 . 38 39 Level 2 29 | . . 58 57 . . . 19 2 11 . . . . . . 16 Level 3 1 | . . 11 . . . . . . . . . . . . . . Level 4 . | . . . . . . . . . . . . . . . . . Level 5 . | . . . . . . . . . . . . . . . . . High Security . | . . . . . . . . . . . . . . . . . Max Security . | . . . . . . . . . . . . . . . . . Squads Dispatched 33 | . 2 7 5 2 . 1 2 . 3 . . 2 1 4 1 3 Investigation 16 | . 2 3 3 1 . . . . 1 . . 1 . 3 . 2 Extermination 3 | . . . . 1 . . . . . . . 1 . 1 . . Reinforcement 13 | . . 3 2 . . 1 2 . 2 . . . 1 . 1 1 Assault 1 | . . 1 . . . . . . . . . . . . . . Garrison . | . . . . . . . . . . . . . . . . . Intercept . | . . . . . . . . . . . . . . . . . Searches Triggered . | . . . . . . . . . . . . . . . . . Construction Impeded 5 | . . 2 1 . . . 2 . . . . . . . . . Haulers Reinforced . | . . . . . . . . . . . . . . . . . Active Scanning Responses . | . . . . . . . . . . . . . . . . . Cargo Convoy Interrupts . | . . . . . . . . . . . . . . . . . Stealth | -11 -10 -9 -8 -7 -6 -5 -5 -5 -4 -4 -4 -3 -3 -2 -2 -1 --------- Run | Scr Mat Mat Mat Fac Fac Fac Ext Cet Fac Upp Upp Res DSF Res Qua Acc Distress Signals 25 | . 1 6 4 . . . 2 1 6 . . . . 2 . 3 Communications Jammed . | . . . . . . . . . . . . . . . . . Distress Signals . | . . . . . . . . . . . . . . . . . Times Spotted 295 | . 22 55 53 4 2 5 23 4 20 6 11 4 6 19 5 56 Peak Tracking Total 21 | . 6 7 5 4 2 1 8 5 11 7 7 6 6 13 6 21 Tactical Retreats 38 | . 4 4 4 . . 1 5 . 3 2 2 1 1 4 . 7 Traps | -11 -10 -9 -8 -7 -6 -5 -5 -5 -4 -4 -4 -3 -3 -2 -2 -1 ------- Run | Scr Mat Mat Mat Fac Fac Fac Ext Cet Fac Upp Upp Res DSF Res Qua Acc Traps Triggered 16 | . 1 2 2 2 . 2 1 . 2 . . . 2 . . 2 Indirectly . | . . . . . . . . . . . . . . . . . Trap Hack Attempts . | . . . . . . . . . . . . . . . . . Triggered . | . . . . . . . . . . . . . . . . . Disarmed . | . . . . . . . . . . . . . . . . . Reprogrammed . | . . . . . . . . . . . . . . . . . Reused . | . . . . . . . . . . . . . . . . . Traps Extracted . | . . . . . . . . . . . . . . . . . Installed . | . . . . . . . . . . . . . . . . . Triggered . | . . . . . . . . . . . . . . . . . Machines | -11 -10 -9 -8 -7 -6 -5 -5 -5 -4 -4 -4 -3 -3 -2 -2 -1 ---------- Run | Scr Mat Mat Mat Fac Fac Fac Ext Cet Fac Upp Upp Res DSF Res Qua Acc Machines Disabled 5 | . 1 1 1 . . . . . . . . . . . 1 1 Max in Single Turn 1 | . 1 1 1 . . . . . . . . . . . 1 1 Garrison Access 3 | . . . 1 . . 2 . . . . . . . . . . Energy Cycler 1 | . . . . . . . . . . . . . . . . 1 Machines Sabotaged . | . . . . . . . . . . . . . . . . . Garrisons Compromised . | . . . . . . . . . . . . . . . . . Overloaded Fab Kills . | . . . . . . . . . . . . . . . . . Hacking | -11 -10 -9 -8 -7 -6 -5 -5 -5 -4 -4 -4 -3 -3 -2 -2 -1 --------- Run | Scr Mat Mat Mat Fac Fac Fac Ext Cet Fac Upp Upp Res DSF Res Qua Acc Machines Accessed 74 | . 4 9 12 6 4 8 9 . 6 . . 4 . 6 2 4 Terminals 49 | . 3 6 8 3 1 1 8 . 5 . . 2 . 6 2 4 Fabricators 2 | . . . . 1 . . . . . . . 1 . . . . Repair Stations 7 | . . 2 1 . 1 1 . . 1 . . 1 . . . . Recycling Units 8 | . 1 . 2 1 1 2 1 . . . . . . . . . Scanalyzers 4 | . . 1 . 1 1 1 . . . . . . . . . . Garrison Access 4 | . . . 1 . . 3 . . . . . . . . . . Total Hacks 205 | . 14 27 25 21 7 22 22 . 24 . . 9 . 20 4 10 Successful 108 | . 6 18 14 9 3 9 15 . 14 . . 5 . 9 3 3 Failed 97 | . 8 9 11 12 4 13 7 . 10 . . 4 . 11 1 7 Catastrophic 18 | . . 2 2 1 1 . 1 . 2 . . . . 4 1 4 Database Lockouts . | . . . . . . . . . . . . . . . . . Manual 54 | . 5 14 14 5 . . . . 7 . . . . 6 . 3 Terminals 142 | . 12 19 18 9 1 4 20 . 21 . . 4 . 20 4 10 Fabricators 5 | . . . . 2 . . . . . . . 3 . . . . Repair Stations 16 | . . 4 2 . 2 3 . . 3 . . 2 . . . . Recycling Units 18 | . 2 . 4 2 1 7 2 . . . . . . . . . Scanalyzers 18 | . . 4 . 8 3 3 . . . . . . . . . . Garrison Access 6 | . . . 1 . . 5 . . . . . . . . . . Terminal Hacks 69 | . 5 10 10 2 . . 15 . 11 . . 1 . 9 3 3 Record 10 | . . . . . . . 2 . 2 . . . . 2 3 1 Part Schematic 1 | . . . . . . . 1 . . . . . . . . . Robot Analysis 7 | . 3 2 1 . . . . . 1 . . . . . . . Prototype ID Bank 6 | . . . 2 . . . 1 . 2 . . . . 1 . . Open Door 4 | . . . . . . . 4 . . . . . . . . . Open DSF 1 | . . . . . . . . . . . . 1 . . . . Branch Access Points 1 | . . . . . . . . . . . . . . 1 . . Emergency Access Points 2 | . . 1 . . . . . . . . . . . 1 . . Machine Index 1 | . . . . . . . . . 1 . . . . . . . Terminal Index 3 | . . . . . . . . . 1 . . . . 1 . 1 Repair Station Index 2 | . . . . . . . 1 . 1 . . . . . . . Alert Level 5 | . . . 2 1 . . . . 1 . . . . 1 . . Unreport Threat 2 | . . . 1 . . . . . 1 . . . . . . . Locate Traps 11 | . . 2 2 1 . . 3 . 1 . . . . 1 . 1 Maintenance Status 1 | . . . . . . . 1 . . . . . . . . . Recall Investigation 1 | . . . . . . . . . . . . . . 1 . . Recall Reinforcements 1 | . . . . . . . 1 . . . . . . . . . Hauler Manifests 2 | . . 1 1 . . . . . . . . . . . . . Registered Components 1 | . . 1 . . . . . . . . . . . . . . Zone Layout 7 | . 2 3 1 . . . 1 . . . . . . . . . Fabricator Hacks 4 | . . . . 2 . . . . . . . 2 . . . . Load Schematic 2 | . . . . 1 . . . . . . . 1 . . . . Build 2 | . . . . 1 . . . . . . . 1 . . . . Repair Station Hacks 12 | . . 4 2 . . 2 . . 2 . . 2 . . . . Scan Component 6 | . . 2 1 . . 1 . . 1 . . 1 . . . . Repair 6 | . . 2 1 . . 1 . . 1 . . 1 . . . . Recycling Unit Hacks 6 | . . . . 1 1 4 . . . . . . . . . . Report Inventory 4 | . . . . 1 . 3 . . . . . . . . . . Retrieve Matter 1 | . . . . . 1 . . . . . . . . . . . Retrieve Components 1 | . . . . . . 1 . . . . . . . . . . Scanalyzer 11 | . . 4 . 4 2 1 . . . . . . . . . . Insert Component 6 | . . 2 . 2 1 1 . . . . . . . . . . Analyze 5 | . . 2 . 2 1 . . . . . . . . . . . Garrison Access Hacks 3 | . . . 1 . . 2 . . . . . . . . . . Seal Access 3 | . . . 1 . . 2 . . . . . . . . . . Unauthorized Hacks 3 | . 1 . 1 . . . . . 1 . . . . . . . Terminals 1 | . . . . . . . . . 1 . . . . . . . Assimilate 1 | . . . . . . . . . 1 . . . . . . . Fabricators . | . . . . . . . . . . . . . . . . . Repair Stations . | . . . . . . . . . . . . . . . . . Recycling Units 2 | . 1 . 1 . . . . . . . . . . . . . Tunnel 2 | . 1 . 1 . . . . . . . . . . . . . Scanalyzers . | . . . . . . . . . . . . . . . . . Garrison Access . | . . . . . . . . . . . . . . . . . Data Cores Recovered . | . . . . . . . . . . . . . . . . . Used . | . . . . . . . . . . . . . . . . . Hacking Detections 59 | . 3 8 11 5 2 5 5 . 5 . . 3 . 6 2 4 Full Trace Events 14 | . 2 2 2 1 . . . . 1 . . 1 . 3 . 2 Feedback Events 1 | . . . . . . . . . . . . . . 1 . . Hackware Fried 1 | . . . . . . . . . . . . . . 1 . . Feedback Blocked . | . . . . . . . . . . . . . . . . . Robot Schematics Acquired . | . . . . . . . . . . . . . . . . . Robots Built . | . . . . . . . . . . . . . . . . . Authchips . | . . . . . . . . . . . . . . . . . Time . | . . . . . . . . . . . . . . . . . Total Robot Build Rating . | . . . . . . . . . . . . . . . . . Part Schematics Acquired 5 | . . 2 . 1 1 . 1 . . . . . . . . . Parts Built 2 | . . . . 1 . . . . . . . 1 . . . . Authchips . | . . . . . . . . . . . . . . . . . Time 97 | . . . . 73 . . . . . . . 24 . . . . Total Part Build Rating 6 | . . . . 3 . . . . . . . 3 . . . . Parts Repaired 6 | . . 2 1 . . 1 . . 1 . . 1 . . . . Time 219 | . . 64 26 . . 37 . . 30 . . 62 . . . . Parts Recycled . | . . . . . . . . . . . . . . . . . Recycled Matter . | . . . . . . . . . . . . . . . . . Retrieved Matter . | . . . . . . . . . . . . . . . . . Retrieved Components 3 | . . . . . . 3 . . . . . . . . . . Parts Scanalyzed 5 | . . 2 . 1 1 1 . . . . . . . . . . Part Schematics Acquired 4 | . . 2 . 1 1 . . . . . . . . . . . Parts Damaged 1 | . . . . . 1 . . . . . . . . . . . Bothacking | -11 -10 -9 -8 -7 -6 -5 -5 -5 -4 -4 -4 -3 -3 -2 -2 -1 ------------ Run | Scr Mat Mat Mat Fac Fac Fac Ext Cet Fac Upp Upp Res DSF Res Qua Acc Used RIF Installer . | . . . . . . . . . . . . . . . . . Robots Hacked . | . . . . . . . . . . . . . . . . . Non-combat . | . . . . . . . . . . . . . . . . . Combat . | . . . . . . . . . . . . . . . . . Robot Hacks Applied . | . . . . . . . . . . . . . . . . . Relay Couplers Released . | . . . . . . . . . . . . . . . . . Fabnet Peak Effective % . | . . . . . . . . . . . . . . . . . Robots Rewired . | . . . . . . . . . . . . . . . . . Allies Hacked . | . . . . . . . . . . . . . . . . . Hacks Repelled . | . . . . . . . . . . . . . . . . . Allies | -11 -10 -9 -8 -7 -6 -5 -5 -5 -4 -4 -4 -3 -3 -2 -2 -1 -------- Run | Scr Mat Mat Mat Fac Fac Fac Ext Cet Fac Upp Upp Res DSF Res Qua Acc Total Allies 7 | . . . . . . 3 3 . 1 . . . . . . . Largest Group 3 | . . . . . . 3 1 . 1 . . . . . . . Highest-Rated Group 159 | . . . . . . 93 159 . 26 . . . . . . . Highest-Rated Ally 159 | . . . . . . 31 159 . 26 . . . . . . . Total Orders 4 | . . . . . . 4 . . . . . . . . . . EXPLORE 3 | . . . . . . 3 . . . . . . . . . . RETURN 1 | . . . . . . 1 . . . . . . . . . . Ally Attacks 57 | . . . . . . 15 42 . . . . . . . . . Total Damage 2088 | . . . . . . 208 1880 . . . . . . . . . Kills 8 | . . . . . . 1 7 . . . . . . . . . Allies Corrupted 1 | . . . . . . . 1 . . . . . . . . . Allies Melted 1 | . . . . . . . 1 . . . . . . . . . Intel | -11 -10 -9 -8 -7 -6 -5 -5 -5 -4 -4 -4 -3 -3 -2 -2 -1 ------- Run | Scr Mat Mat Mat Fac Fac Fac Ext Cet Fac Upp Upp Res DSF Res Qua Acc Robot Analysis Total 7 | . 3 2 1 . . . . . 1 . . . . . . . Derelict Logs Recovered 2 | . . . . . . . . . . 1 1 . . . . . Drone Launches 4 | . . . . . . 4 . . . . . . . . . . Drone Recoveries 4 | . . . . . . 4 . . . . . . . . . . Decoded 0b10 Intel 27 | . . . . . . . . . . . . 5 2 14 4 2 Traps 11 | . . . . . . . . . . . . 1 1 6 2 1 Emergency Access 16 | . . . . . . . . . . . . 4 1 8 2 1 Exploration | -11 -10 -9 -8 -7 -6 -5 -5 -5 -4 -4 -4 -3 -3 -2 -2 -1 ------------- Run | Scr Mat Mat Mat Fac Fac Fac Ext Cet Fac Upp Upp Res DSF Res Qua Acc Turns Passed 10607 | 118 1025 1647 3135 517 343 827 695 38 392 84 175 272 72 684 186 397 Spaces Moved 11775 | 71 677 906 1098 839 1059 1411 1439 77 782 295 423 439 119 1210 278 652 Core 92 | 5 . . . 1 . . . . . . . . . . . 86 Treads 1022 | . . . 973 7 . . . . . . . . . 42 . . Legs . | . . . . . . . . . . . . . . . . . Wheels 1773 | 66 676 906 125 . . . . . . . . . . . . . Hover 115 | . 1 . . . . . . . . . . . . 114 . . Flight 8773 | . . . . 831 1059 1411 1439 77 782 295 423 439 119 1054 278 566 Fastest Speed 18 | 50 90 120 105 23 20 28 18 18 25 25 25 27 27 21 24 21 Average Speed 58 | 97 100 121 226 24 23 28 27 21 27 25 25 27 28 37 28 32 Slowest Speed 240 | 100 180 135 240 240 28 28 28 28 32 25 28 29 103 148 29 107 Overloaded Moves . | . . . . . . . . . . . . . . . . . Propulsion Burnouts . | . . . . . . . . . . . . . . . . . Robots Hopped 63 | . . . . 1 2 5 20 . 8 3 . 3 . 7 . 14 Cave-ins Triggered . | . . . . . . . . . . . . . . . . . Teleports 1 | . . . . . . . . . . . . . . . 1 . Exploration Rate (%) 41 | 4 86 82 82 23 18 29 75 23 22 47 40 9 78 31 31 25 Regions Visited 16 Branch Regions 5 Pre-discovered Areas 4 | . 1 . 1 . . . . . . 1 1 . . . . . Known Exits Taken 11 | . . . . 1 1 1 1 1 1 1 1 1 . 1 1 . Unknown Exits Taken 4 | 1 1 1 1 . . . . . . . . . . . . . Scrap Searched 3 | . . . . . . . . . . 2 1 . . . . . Spaces Dug 149 | . 15 7 9 7 8 23 5 . 33 . 13 . . 13 6 10 Terrain Destroyed 450 | . 15 34 40 7 8 23 158 60 63 . 13 . . 13 6 10 Melee 33 | . . . . 7 8 13 . . 5 . . . . . . . Projectile 94 | . 8 9 10 . . 10 5 . 10 . 13 . . 13 6 10 AOE 323 | . 7 25 30 . . . 153 60 48 . . . . . . . Terrain Rammed . | . . . . . . . . . . . . . . . . . Walls Destroyed . | . . . . . . . . . . . . . . . . . Machines Disabled . | . . . . . . . . . . . . . . . . . Actions | -11 -10 -9 -8 -7 -6 -5 -5 -5 -4 -4 -4 -3 -3 -2 -2 -1 --------- Run | Scr Mat Mat Mat Fac Fac Fac Ext Cet Fac Upp Upp Res DSF Res Qua Acc Total 14371 | 94 844 1264 1476 1135 1122 1787 1636 86 898 300 474 581 157 1372 340 805 Wait 1495 | . 27 170 145 240 40 318 111 1 40 3 30 139 21 60 16 134 Move 11635 | 70 676 905 1097 836 1054 1400 1399 76 765 288 422 432 118 1195 277 625 Hop 61 | . . . . 1 2 5 19 . 8 3 . 3 . 7 . 13 Pick Up 111 | 6 13 33 26 7 3 6 2 . 2 1 1 . 1 6 3 1 Fast Attach 91 | 6 6 5 8 5 2 7 5 . 5 2 2 3 3 19 6 7 Attach 55 | . 2 7 11 7 2 3 2 2 3 1 3 . . 3 4 5 Detach 27 | . 2 1 1 5 1 1 2 1 2 . . 1 1 5 3 1 Swap 107 | . 10 15 20 7 3 7 18 1 8 1 2 . 1 9 1 4 Drop 116 | . 14 20 18 19 2 10 10 . . 1 1 . 2 17 2 . Fire 511 | 12 90 99 142 . . 10 34 5 13 . 13 . . 51 28 14 Melee 79 | . . . . 8 13 20 19 . 16 . . 3 . . . . Ram 16 | . 4 9 2 . . . . . . . . . . . . 1 Kick . | . . . . . . . . . . . . . . . . . Crush 6 | . . . 6 . . . . . . . . . . . . . Escape Stasis 61 | . . . . . . . 15 . 36 . . . 10 . . . Rewire . | . . . . . . . . . . . . . . . . . Trap . | . . . . . . . . . . . . . . . . . Miscellaneous . | . . . . . . . . . . . . . . . . . Route ------- -11/Scrapyard -10/Materials (discovered 5 exits: *Mat x3 / [*Min x2]) -9/Materials (discovered 4 exits: *Mat x3 / [*Min]) -8/Materials (discovered 2 exits: *Fac x2) -7/Factory (discovered 3 exits: *Fac / *Sto / *Low) -6/Factory -5/Factory -5/Extension (discovered 3 exits: *Fac x2 / *Cet) -5/Cetus -4/Factory (discovered 2 exits: *Res / *Upp) -4/Upper Caves -4/Upper Caves -3/Research -3/DSF -2/Research (discovered 2 exits: *Qua x2) -2/Quarantine -1/Access History --------- Turn | Location | Event 10 | -11/Scrapyard | Discovered new exit (range 16) 119 | -11/Scrapyard | Entered Materials 259 | -10/Materials | Discovered new exit (range 15) 277 | -10/Materials | Discovered new exit (range 16) 313 | -10/Materials | Build established: Mutant 819 | -10/Materials | Discovered new exit (range 8) 892 | -10/Materials | Discovered new exit (range 8) 1055 | -10/Materials | Discovered new exit (range 11) 1144 | -10/Materials | Entered another Materials area 1144 | -9/Materials | Evolved 2 slots: Propulsion x1, Utility x1 1706 | -9/Materials | Repaired Arm. Wheel 2082 | -9/Materials | Discovered new exit (range 4) 2226 | -9/Materials | Discovered new exit (range 10) 2259 | -9/Materials | Repaired Arm. Wheel 2547 | -9/Materials | Discovered new exit (range 7) 2623 | -9/Materials | Discovered new exit (range 8) 2744 | -9/Materials | First assault squad dispatched 2791 | -9/Materials | Entered another Materials area 2791 | -8/Materials | Evolved 2 slots: Propulsion x1, Utility x1 3107 | -8/Materials | Lost 5 parts (3n2u) 3158 | -8/Materials | Discovered new exit (range 18) 4153 | -8/Materials | Repaired Grenade Launcher 4746 | -8/Materials | Discovered new exit (range 18) 5480 | -8/Materials | Build established: Scavenger-Mutant 5926 | -8/Materials | Entered Factory 5926 | -7/Factory | Evolved 2 slots: Propulsion x1, Utility x1 6027 | -7/Factory | Discovered new exit (range 6) 6028 | -7/Factory | Identified exit to Lower Caves 6160 | -7/Factory | Discovered new exit (range 12) 6162 | -7/Factory | Identified exit to Storage 6229 | -7/Factory | Build established: Hacker-Scout 6234 | -7/Factory | Discovered new exit (range 5) 6249 | -7/Factory | Identified exit to Factory 6294 | -7/Factory | Fabricated Hacking Suite? 6443 | -7/Factory | Entered another Factory area 6443 | -6/Factory | Evolved 2 slots: Propulsion x1, Utility x1 6496 | -6/Factory | Discovered new exit (range 18) 6506 | -6/Factory | Identified exit to Factory 6786 | -6/Factory | Entered another Factory area 6786 | -5/Factory | Evolved 2 slots: Propulsion x1, Utility x1 6808 | -5/Factory | Build established: Hacker-Sprinter 7212 | -5/Factory | Repaired Broken Fusion Reactor 7220 | -5/Factory | Discovered new exit (range 16) 7224 | -5/Factory | Identified exit to Extension 7230 | -5/Factory | Allied Derelicts emerged from ambush trap array 7613 | -5/Factory | Entered Extension 7636 | -5/Extension | Spotted B-75 Beast 7671 | -5/Extension | Rescued a captive Derelict 7734 | -5/Extension | Rescued A7 8088 | -5/Extension | Disrupted transfer network 8105 | -5/Extension | Destroyed B-75 Beast 8134 | -5/Extension | Spotted B-75 Beast 8143 | -5/Extension | Extracted ID and sensor layout for unrecognized location from A7's data core 8146 | -5/Extension | Destroyed B-75 Beast 8154 | -5/Extension | Discovered new exit (range 3) 8154 | -5/Extension | Identified exit to Factory 8195 | -5/Extension | Destroyed 7 combat bots 8253 | -5/Extension | Rescued a captive Derelict 8255 | -5/Extension | Rescued a captive Derelict 8294 | -5/Extension | Discovered new exit (range 16) 8294 | -5/Extension | Discovered exit to Factory (range 14) 8297 | -5/Extension | Identified exit to Cetus 8308 | -5/Extension | Entered Cetus 8313 | -5/Cetus | Spotted Cetus Guard 8313 | -5/Cetus | Spotted Cetus Guard 8313 | -5/Cetus | Spotted Cetus Guard 8317 | -5/Cetus | Discovered exit to Factory (range 15) 8346 | -5/Cetus | Entered Factory 8346 | -4/Factory | Evolved 2 slots: Utility x2 8360 | -4/Factory | Discovered new exit (range 7) 8362 | -4/Factory | Identified exit to Research 8368 | -4/Factory | Lost 5 parts (3n1u1w) 8509 | -4/Factory | Discovered new exit (range 15) 8533 | -4/Factory | Identified exit to Upper Caves 8566 | -4/Factory | Spotted B-86 Titan 8587 | -4/Factory | Repaired Imp. VTOL Module 8738 | -4/Factory | Entered Upper Caves 8767 | -4/Upper Caves | Lost 3 parts (2u1w) 8798 | -4/Upper Caves | Attracted the attention of an 0b10 checkpoint 8807 | -4/Upper Caves | Learned location of Testing (-3) 8820 | -4/Upper Caves | Discovered new exit (range 8) 8822 | -4/Upper Caves | Identified exit to Upper Caves 8822 | -4/Upper Caves | Entered another Upper Caves area 8994 | -4/Upper Caves | Discovered exit to Research (range 14) 8997 | -4/Upper Caves | Entered Research 8997 | -3/Research | Evolved 2 slots: Utility x2 9051 | -3/Research | Fabricated Imp. Sensor Array (x1) 9076 | -3/Research | Found Unknown Device 9076 | -3/Research | Identified Antimissile System 9255 | -3/Research | Repaired Field Propulsion Array 9269 | -3/Research | Identified exit to DSF 9269 | -3/Research | Entered DSF 9298 | -3/DSF | Additional patrols routed to DSF 9335 | -3/DSF | Discovered new exit (range 14) 9341 | -3/DSF | Identified exit to Research 9341 | -3/DSF | Entered Research 9341 | -2/Research | Evolved 2 slots: Power x1, Propulsion x1 9371 | -2/Research | Lost 4 parts (2n1u1w) 9987 | -2/Research | Spotted B-90 Cyclops 9990 | -2/Research | Identified exit to Quarantine 9990 | -2/Research | Hacking Suite fried by hacking feedback 10025 | -2/Research | Entered Quarantine 10051 | -2/Quarantine | Lost 6 parts (1p1n3u1w) 10057 | -2/Quarantine | Found Alien Artifact 10057 | -2/Quarantine | Identified Hpw. Transdimensional Reconstructor 10057 | -2/Quarantine | Warped through subspace 10066 | -2/Quarantine | Found Prototype Processor 10066 | -2/Quarantine | Identified Exp. Core Analyzer 10130 | -2/Quarantine | Found Alien Artifact 10130 | -2/Quarantine | Identified Terrabomb 10130 | -2/Quarantine | Used Terrabomb 10174 | -2/Quarantine | Discovered new exit (range 15) 10188 | -2/Quarantine | Identified exit to Access 10211 | -2/Quarantine | Entered Access 10211 | -1/Access | Evolved 2 slots: Power x1, Propulsion x1 10460 | -1/Access | Lost 5 parts (2n3u) 10463 | -1/Access | Spotted B-99 Colossus 10479 | -1/Access | Energy Cycler disabled 10573 | -1/Access | Core integrity fell below 50% 10602 | -1/Access | Core integrity fell below 20% 10608 | -1/Access | Destroyed by G-73 Enforcer with Phase Gun Last Messages --------------- 10565_ Slug penetrates Wall. 10574_ Connecting with Terminal... 10574_ ALERT: Suspicious activity at Terminal A019. Dispatching Investigation squad. 10580_ Acquired Quantum Rifle. 10585_ S-43 Plague destroyed. 10585_ Quantum Rifle destroyed. 10586_ Acquired Xenon Bombardment Thruster. 10588_ S-43 Plague destroyed. 10590_ Slug penetrates R-10 Processor. 10590_ Wave Collapse Detector explodes. 10590_ Xenon Bombardment Thruster destroyed. 10590_ Wave Collapse Detector explodes. 10591_ Slammed into R-10 Processor. 10598_ System Shield destroyed. 10601_ Triggered Gamma Bomb Trap. 10601_ A bubble of electromagnetic force engulfs the area. 10601_ Knocked back. 10605_ W-44 Eye sends out distress signal. 10607_ Penetrated by Slug. Map ----- +----------------------------------------------------+ | #??#/#?# !# #????????# #?? | | #?? ?# # #########?# " = #?? | | #?? ?# " + #?# """% #?? | | #?? ?# """ # % #?# """ [ #?? | | #?? ?# """ ######## #?# " #?? | | #?? # " ????????# #?# [% #?? | | #?? # = ????????#% #?# #?? | | #?? # ?????????# #?# #?? | | #?? ###+###????????## ### #####+####?? | | #?? ?### ############ ##########+### #???? | | #??????# "T #???? | | ????? + "" #???? | | ???????# ###########% ############## #???? | | ??????????????????????## ##????????????######???? | | ???????????????????????#s #??????????????????????? | | ???????????????????????#ss##?????????????????????? | | ???????????????????????# s;#?????????????????????? | | ???????????????????????# ##?????????????????????? | | ???????????????????????# ##?????????????????????? | | ??????????????????????## ;#?????????????????????? | | ????????# ########+### #?????????????????????? | | ????????# H #?????????????????????? | | ????????# !% #?????????????????????? | | ????????############### #?????????????????????? | | ??????????????########## ;#?????????????????????? | | ?????????????# @##?????????????????????? | | ?????????????# #??????????????????????? | | ?????????????# #??????????????????????? | | ?????????????# #??????????????????????? | | ?????????????# #??????????????????????? | | ?????????????# g #??????????????????????? | | ?????????????# ??????????????????????? | | ?????????????# ??????????????????????? | | ?????????????# ??????????????????????? | | ?????????????# bg ??????????????????????? | | ?????????????# g ??????????????????????? | | ?????????????# k ??????????????????????? | | ????????????? k ??????????????????????? | | ???????????? #####+??????????????????????? | | ??????????? ????????????????????????????? | | ??????????###### ### ????????????????????????????? | | ???????????????#+??#+????????????????????????????? | | ?????????????????????????????????????????????????? | | ?????????????????????????????????????????????????? | | ?????????????????????????????????????????????????? | | ?????????????????????????????????????????????????? | | ?????????????????????????????????????????????????? | | ?????????????????????????????????????????????????? | | ?????????????????????????????????????????????????? | | ?????????????????????????????????????????????????? | +----------------------------------------------------+ Best States ------------- Heat Dissipation 52 Energy Generation 51 Energy Capacity 295 Matter Stores 300 Matter Capacity 300 Sight Range 22 Robot Scan Range 18 Terrain Scan Density 110 ECM Strength 2 Cloak Strength 3 Armor Coverage 375 Resistance: KI 30 Resistance: EM 15 Propulsion Shielding 66 Phase Shifting 5 Evasion (%) 81 Targeting Accuracy 8 Recoil Reduction 4 Offensive Hacking 22 Defensive Hacking 20 Item Schematics ----------------- Sml. Storage Unit | -9/Materials | Scanalyzed Rocket Launcher | -9/Materials | Scanalyzed Hacking Suite | -7/Factory | Scanalyzed Imp. Sensor Array | -6/Factory | Scanalyzed Adv. System Shield | -5/Extension | Hacked Robot Schematics ------------------ None Fabricated ------------ Hacking Suite | x1 | -7/Factory Imp. Sensor Array | x1 | -3/Research Alien Tech Used ----------------- High-powered Transdimensional Reconstructor Terrabomb Achievements -------------- Dodgeball, But With Guns Prison Break Challenges ------------ None Game ------ Seed LightpackAuthchipCoupler Manual? 0 Play Time 05:38:13 Cumulative 97.9 hours Start 2022.12.02 @ 12:47:53 End 2022.12.03 @ 01:46:49 Sessions 5 Manual Loads 0 Difficulty Rogue Special Mode None Game No. 24 Rogue 24 Adventurer 0 Explorer 0 Win Type - Total 0 Types 0/0/0/0/0/0/0/0/0 Lore% 42 Gallery% 44 Achievement% 40 Wizard Run 0 Options --------- ASCII 0 Keyboard 1 Movement Vi Keybinds 0 Fullscreen 1 Font 18/SmallcapsGlow Map View 76x50 Tactical HUD 1 Map Filters NONE Filters NONE Steam 1 RUN: 12db49fa-4e92-44c8-8a56-c924cda23550